bitfinex/quotes_BTCUSD_20250308
["timestamp","ask_amount","ask_price","bid_price","bid_amount"]
[1741468839010,3.1e-07,86688.0,86687.0,0.65391541]
[1741468839216,3.1e-07,86688.0,86687.0,0.64691541]
[1741468839415,3.1e-07,86688.0,86687.0,0.63991541]
[1741468840198,3.1e-07,86688.0,86687.0,0.64691541]
[1741468840521,3.1e-07,86688.0,86687.0,0.63991541]
[1741468840754,3.1e-07,86688.0,86687.0,0.65391541]
[1741468841482,3.1e-07,86688.0,86687.0,0.64434728]
[1741468841691,3.1e-07,86688.0,86687.0,1.21174728]
[1741468842045,3.1e-07,86688.0,86687.0,1.22135019]
[1741468842274,3.1e-07,86688.0,86687.0,1.21435019]
[1741468842474,3.1e-07,86688.0,86687.0,1.20735019]
[1741468842680,3.1e-07,86688.0,86687.0,1.21435019]
[1741468842880,3.1e-07,86688.0,86687.0,1.22135019]
[1741468843258,3.1e-07,86688.0,86687.0,1.21435019]
[1741468843594,3.1e-07,86688.0,86687.0,1.22135019]
[1741468844200,3.1e-07,86688.0,86687.0,1.21435019]
[1741468844398,3.1e-07,86688.0,86687.0,1.18935019]
[1741468844609,3.1e-07,86688.0,86687.0,1.21435019]
[1741468844781,3.1e-07,86688.0,86687.0,1.22135019]
[1741468845344,3.1e-07,86688.0,86687.0,1.21435019]
[1741468845962,3.1e-07,86688.0,86687.0,1.22135019]
[1741468846164,3.1e-07,86688.0,86687.0,1.20735019]
[1741468846616,3.1e-07,86688.0,86687.0,1.18935019]
[1741468846817,3.1e-07,86688.0,86687.0,1.21435019]
[1741468848075,3.1e-07,86688.0,86687.0,1.22135019]
[1741468848550,3.1e-07,86688.0,86687.0,1.19635019]
[1741468848748,3.1e-07,86688.0,86687.0,1.22135019]
[1741468851608,3.1e-07,86688.0,86687.0,0.92135019]
[1741468853201,3.1e-07,86688.0,86687.0,0.98015019]
[1741468853479,0.138393,86709.0,86699.0,0.011534]
[1741468853681,0.14998873,86707.0,86700.0,0.10892]
[1741468853889,0.011533,86704.0,86700.0,0.10892]
[1741468854110,0.011533,86704.0,86689.0,0.00040634]
[1741468854111,0.138403,86703.0,86701.0,0.01644922]
[1741468854326,0.011533,86702.0,86701.0,0.01644922]
[1741468854539,0.011534,86700.0,86699.0,0.109]
[1741468854757,0.149943,86700.0,86699.0,0.116]
[1741468854940,0.149943,86700.0,86699.0,0.13245183]
[1741468855291,0.149943,86700.0,86699.0,0.13945183]
[1741468855890,0.149936,86704.0,86699.0,0.13245183]
[1741468856104,0.149936,86704.0,86699.0,0.13945183]
[1741468856307,0.0455,86703.0,86699.0,0.13945183]
[1741468856526,0.138409,86700.0,86699.0,0.13945183]
[1741468856732,0.011534,86700.0,86699.0,0.13245183]
[1741468856932,0.011534,86700.0,86699.0,0.12545183]
[1741468857146,0.149938,86702.0,86699.0,0.12545183]
[1741468857772,0.149938,86702.0,86699.0,0.13245183]
[1741468857983,0.149938,86702.0,86699.0,0.12545183]
[1741468858332,0.011534,86700.0,86699.0,0.13945183]
[1741468858737,0.011534,86700.0,86699.0,0.13245183]
[1741468858936,0.011534,86700.0,86699.0,0.13945183]
[1741468859564,0.0001699,86702.0,86701.0,0.011533]
[1741468859792,0.0001699,86702.0,86701.0,0.027986]
[1741468860613,0.0001699,86702.0,86701.0,0.034986]
[1741468862079,0.0001699,86702.0,86701.0,0.041986]
[1741468866427,0.0001699,86702.0,86701.0,0.030453]
[1741468867297,0.1385749,86702.0,86701.0,0.030453]
[1741468867667,0.1385749,86702.0,86701.0,0.139613]
[1741468867668,0.1501079,86702.0,86701.0,0.139613]
[1741468870674,0.1501079,86702.0,86701.0,0.1399526]
[1741468871893,0.1501079,86702.0,86701.0,0.0307926]
[1741468877344,0.0001699,86702.0,86701.0,0.0423256]
[1741468878819,0.0001699,86702.0,86701.0,0.0307926]
[1741468882318,0.0001699,86702.0,86701.0,0.0423256]
[1741468882869,0.0001699,86702.0,86701.0,0.1251256]
[1741468884671,0.011532,86712.0,86701.0,0.1251256]
[1741468884929,0.01191695,86712.0,86701.0,0.1251256]
[1741468885232,0.011532,86708.0,86702.0,0.149938]
[1741468885353,0.011532,86708.0,86701.0,0.1251256]
[1741468885354,0.14993,86707.0,86701.0,0.1135926]
[1741468885561,0.011533,86707.0,86702.0,0.01495646]
[1741468885769,0.011533,86707.0,86701.0,0.0986726]
[1741468886025,0.011533,86707.0,86702.0,0.01495646]
[1741468886191,0.011533,86707.0,86701.0,0.0946726]
[1741468886396,0.01809772,86706.0,86702.0,0.01995646]
[1741468886809,0.01809772,86706.0,86702.0,0.01495646]
[1741468887005,0.01809772,86706.0,86701.0,0.1006726]
[1741468887233,0.01809772,86706.0,86702.0,0.01495646]
[1741468887399,0.01809772,86706.0,86702.0,0.149937]
[1741468887600,0.01809772,86706.0,86703.0,0.01495528]
[1741468888250,0.01809772,86706.0,86703.0,0.16488928]
[1741468889376,0.01809772,86706.0,86703.0,0.17588928]
[1741468889991,0.01809772,86706.0,86703.0,0.03748828]
[1741468895856,0.01809772,86706.0,86703.0,0.03782788]
[1741468898043,0.1384,86705.0,86703.0,0.02629488]
[1741468898266,0.011533,86704.0,86703.0,0.02629488]
[1741468899121,0.011533,86704.0,86703.0,0.02129488]
[1741468899293,0.011532,86708.0,86703.0,0.02129488]
[1741468899495,0.011532,86708.0,86703.0,0.02629488]
[1741468899697,0.011532,86708.0,86703.0,0.01529488]
[1741468899698,0.01809853,86704.0,86703.0,0.01529488]
[1741468900021,0.01809853,86704.0,86703.0,0.02129488]
[1741468900022,0.011533,86704.0,86703.0,0.02129488]
[1741468900856,0.14993,86707.0,86703.0,0.02129488]
[1741468901060,0.011533,86706.0,86703.0,0.02129488]
[1741468901427,0.011533,86706.0,86703.0,0.01529488]
[1741468901628,0.011533,86706.0,86703.0,0.02529488]
[1741468902030,0.06581966,86709.0,86703.0,0.01529488]
[1741468902225,0.06581966,86709.0,86703.0,0.02029488]
[1741468902458,0.06581966,86709.0,86703.0,0.02629488]
[1741468902658,0.011533,86706.0,86703.0,0.02629488]
[1741468903013,0.011533,86706.0,86703.0,0.02129488]
[1741468903392,0.011533,86706.0,86703.0,0.01529488]
[1741468904358,0.011533,86706.0,86703.0,0.01929488]
[1741468904761,0.011533,86706.0,86703.0,0.01529488]
[1741468904964,0.011533,86706.0,86703.0,0.02029488]
[1741468905162,0.011533,86706.0,86703.0,0.02529488]
[1741468905746,0.011533,86706.0,86703.0,0.02029488]
[1741468906089,0.011533,86706.0,86703.0,0.02629488]
[1741468908275,0.01809801,86706.0,86703.0,0.02629488]
[1741468910916,0.01809801,86706.0,86704.0,0.088033]
[1741468911146,0.01809801,86706.0,86705.0,0.149933]
[1741468911360,0.01809801,86706.0,86705.0,0.21058491]
[1741468912758,0.01809801,86706.0,86705.0,0.21558491]
[1741468912958,0.01809801,86706.0,86705.0,0.07718491]
[1741468913343,0.01809801,86706.0,86705.0,0.06565191]
[1741468913546,0.01809801,86706.0,86705.0,0.07165191]
[1741468915283,0.01809801,86706.0,86705.0,0.21005191]
[1741468915486,0.01809801,86706.0,86705.0,0.22158491]
[1741468916250,0.01809801,86706.0,86705.0,0.08318491]
[1741468916657,0.01809801,86706.0,86705.0,0.22158491]
[1741468919460,0.01809801,86706.0,86705.0,0.07165191]
[1741468922211,0.01809801,86706.0,86705.0,0.08318491]
[1741468924080,0.01809801,86706.0,86705.0,0.16048491]
[1741468924259,0.01809801,86706.0,86705.0,0.16163826]
[1741468924411,0.0001698,86708.0,86707.0,0.134333]
[1741468924610,0.0001698,86708.0,86707.0,0.25811999]
[1741468926051,0.0001698,86708.0,86707.0,0.26311999]
[1741468926693,0.0001698,86708.0,86707.0,0.26911999]
[1741468927371,0.01826594,86708.0,86707.0,0.26911999]
[1741468944101,0.01826594,86708.0,86707.0,0.26945979]
[1741468945260,0.01826594,86708.0,86707.0,0.26964213]
[1741468945478,0.01826594,86708.0,86707.0,0.26945979]
[1741468954684,0.01826594,86708.0,86707.0,0.26088679]
[1741468954898,0.04566687,86708.0,86707.0,0.02628679]
[1741468955056,0.02979794,86708.0,86707.0,0.13508679]
[1741468956194,0.05681251,86708.0,86707.0,0.13508679]
[1741468956394,0.01826594,86708.0,86707.0,0.13508679]
[1741468958495,0.01826594,86708.0,86707.0,0.1169901]
[1741468958827,0.0001698,86708.0,86707.0,0.13268155]
[1741468960627,0.4140518,86708.0,86707.0,0.13268155]
[1741468961584,0.43214826,86708.0,86707.0,0.13268155]
[1741468964558,0.43214826,86708.0,86707.0,0.40961155]
[1741468965506,0.4140518,86708.0,86707.0,0.40961155]
[1741468967328,0.4140518,86708.0,86707.0,0.40776125]
[1741468967650,0.4140518,86708.0,86707.0,0.40876125]
[1741468967847,0.43214615,86708.0,86707.0,0.40876125]
[1741468968080,0.43214615,86708.0,86707.0,0.41476125]
[1741468968459,0.43214615,86708.0,86707.0,0.40876125]
[1741468968844,0.43214615,86708.0,86707.0,0.41576125]
[1741468977028,0.42714615,86708.0,86707.0,0.41576125]
[1741468981719,0.42731605,86708.0,86707.0,0.41576125]
[1741468982125,0.42731605,86708.0,86707.0,0.30696125]
[1741468982253,0.42731605,86708.0,86707.0,0.41576125]
[1741468982657,0.42731605,86708.0,86707.0,0.30696125]
[1741468982863,0.57724305,86708.0,86707.0,0.13883125]
[1741468983064,0.5591487,86708.0,86707.0,0.13883125]
[1741468983674,0.5591487,86708.0,86707.0,0.03003125]
[1741468983902,0.5591487,86708.0,86707.0,0.13883125]
[1741468984499,0.4092217,86708.0,86707.0,0.13883125]
[1741468985519,0.20298199,86708.0,86707.0,0.13883125]
[1741468986027,0.22107761,86708.0,86707.0,0.13883125]
[1741468992015,0.22107761,86708.0,86707.0,0.15036425]
[1741468995658,0.22107761,86708.0,86707.0,0.19746425]
[1741469001405,0.05031989,86718.0,86711.0,0.13839]
[1741469001781,0.138382,86716.0,86712.0,0.01568608]
[1741469003317,0.011531,86717.0,86712.0,0.15407308]
[1741469003455,0.011531,86717.0,86712.0,0.15907308]
[1741469003657,0.011531,86717.0,86712.0,0.17060508]
[1741469003864,0.011531,86717.0,86712.0,0.17460508]
[1741469004060,0.011531,86717.0,86712.0,0.17060508]
[1741469004362,0.05031989,86718.0,86712.0,0.17060508]
[1741469004713,0.01809478,86716.0,86712.0,0.16560508]
[1741469005091,0.01809478,86716.0,86714.0,0.149917]
[1741469005637,0.01809478,86716.0,86715.0,0.01568216]
[1741469006500,0.01809478,86716.0,86713.0,0.0775]
[1741469006659,0.01809478,86716.0,86715.0,0.01568216]
[1741469007292,0.01809478,86716.0,86715.0,0.01968216]
[1741469007889,0.02962578,86716.0,86715.0,0.01968216]
[1741469008102,0.02962578,86716.0,86715.0,0.02468216]
[1741469008475,0.02962578,86716.0,86715.0,0.009]
[1741469009993,0.02962578,86716.0,86715.0,0.02468142]
[1741469010557,0.01809478,86716.0,86715.0,0.02468142]
[1741469011244,0.16800778,86716.0,86715.0,0.02468142]
[1741469011443,0.16800778,86716.0,86715.0,0.009]
[1741469014848,0.16800778,86716.0,86715.0,0.02468185]
[1741469015043,0.16800778,86716.0,86715.0,0.009]
[1741469015247,0.16800778,86716.0,86715.0,0.02468185]
[1741469015510,0.16800778,86716.0,86715.0,0.009]
[1741469015720,0.16800778,86716.0,86715.0,0.02468185]
[1741469015867,0.16800778,86716.0,86715.0,0.009]
[1741469017296,0.16800778,86716.0,86715.0,0.0093398]
[1741469018122,0.02962578,86716.0,86715.0,0.0093398]
[1741469018331,0.02962578,86716.0,86715.0,0.02502165]
[1741469020796,0.02962578,86716.0,86715.0,0.0093398]
[1741469023986,0.06934117,86718.0,86715.0,0.0093398]
[1741469024187,0.01809573,86716.0,86715.0,0.0093398]
[1741469024583,0.138382,86717.0,86715.0,0.0093398]
[1741469024784,0.138382,86717.0,86715.0,0.0043398]
[1741469025041,0.011531,86716.0,86715.0,0.0043398]
[1741469025241,0.011531,86716.0,86715.0,0.0083398]
[1741469025743,0.011531,86716.0,86715.0,0.0003398]
[1741469025950,0.011531,86716.0,86715.0,0.0043398]
[1741469026123,0.011531,86716.0,86715.0,0.0003398]
[1741469026325,0.011531,86716.0,86715.0,0.0043398]
[1741469027487,0.02962605,86716.0,86715.0,0.0043398]
[1741469028032,0.02962605,86716.0,86715.0,0.0093398]
[1741469028659,0.02962605,86716.0,86715.0,0.0043398]
[1741469029062,0.02962605,86716.0,86715.0,0.0093398]
[1741469045216,0.02962605,86716.0,86715.0,0.0850398]
[1741469045623,0.02962605,86716.0,86715.0,0.10072115]
[1741469048003,0.011531,86716.0,86715.0,0.08262536]
[1741469051013,0.02962607,86716.0,86715.0,0.08262536]
[1741469055211,0.02962607,86716.0,86715.0,0.08296516]
[1741469060576,0.02962607,86716.0,86715.0,0.01602115]
[1741469067080,0.02979597,86716.0,86715.0,0.01602115]
[1741469081418,0.01809601,86716.0,86715.0,0.01602115]
[1741469081849,0.011531,86716.0,86715.0,0.01602115]
[1741469083123,0.011531,86716.0,86715.0,0.0003398]
[1741469083735,0.011531,86716.0,86715.0,0.14052198]
[1741469083945,0.011531,86716.0,86715.0,0.1248398]
[1741469084238,0.011531,86716.0,86715.0,0.14052198]
[1741469084448,0.02962604,86716.0,86715.0,0.14052198]
[1741469106644,0.14431393,86718.0,86715.0,0.14052198]
[1741469106865,0.011531,86716.0,86715.0,0.14052198]
[1741469107022,0.02962695,86716.0,86715.0,0.14052198]
[1741469107227,0.011531,86716.0,86715.0,0.14052198]
[1741469107828,0.011531,86716.0,86715.0,0.01602198]
[1741469108229,0.011531,86716.0,86715.0,0.0003398]
[1741469108427,0.011531,86716.0,86715.0,0.0043398]
[1741469109061,0.011531,86716.0,86715.0,0.0003398]
[1741469109439,0.011531,86716.0,86715.0,0.0053398]
[1741469110044,0.02962639,86716.0,86715.0,0.0053398]
[1741469111560,0.02962639,86716.0,86715.0,0.0815398]
[1741469111760,0.02962639,86716.0,86715.0,0.0972217]
[1741469111955,0.02962639,86716.0,86715.0,0.0815398]
[1741469123365,0.02962639,86716.0,86715.0,0.1292398]
[1741469123767,0.02962639,86716.0,86715.0,0.1449217]
[1741469125447,0.02962639,86716.0,86715.0,0.12682587]
[1741469125667,0.011531,86716.0,86715.0,0.12682587]
[1741469126048,0.011531,86716.0,86715.0,0.12716567]
[1741469128467,0.02962602,86716.0,86715.0,0.12716567]
[1741469133908,0.011531,86716.0,86715.0,0.12716567]
[1741469134129,0.02962685,86716.0,86715.0,0.12716567]
[1741469134579,0.011531,86716.0,86715.0,0.12716567]
[1741469137244,0.02962611,86716.0,86715.0,0.12716567]
[1741469138626,0.02979601,86716.0,86715.0,0.12716567]
[1741469140791,0.01826501,86716.0,86715.0,0.13869767]
[1741469141554,0.01826501,86716.0,86715.0,0.12716567]
[1741469144097,0.011531,86721.0,86716.0,0.0777]
[1741469144299,0.011531,86721.0,86717.0,0.12435929]
[1741469144909,0.011531,86721.0,86718.0,0.0777]
[1741469145144,0.011531,86721.0,86719.0,0.01567554]
[1741469145281,0.01153,86723.0,86719.0,0.01567554]
[1741469145481,0.138373,86722.0,86720.0,0.0777]
[1741469145685,0.149904,86722.0,86720.0,0.0777]
[1741469146895,0.149904,86722.0,86720.0,0.0807]
[1741469147309,0.01153,86723.0,86720.0,0.0807]
[1741469147469,0.149904,86722.0,86720.0,0.0807]
[1741469147651,0.16799862,86722.0,86721.0,0.01567293]
[1741469148031,0.16799862,86722.0,86720.0,0.0807]
[1741469148244,0.16799862,86722.0,86721.0,0.01567293]
[1741469148477,0.16799862,86722.0,86720.0,0.0807]
[1741469148681,0.16799862,86722.0,86721.0,0.01567293]
[1741469148889,0.16799862,86722.0,86720.0,0.0807]
[1741469149131,0.16799862,86722.0,86721.0,0.01567293]
[1741469149554,0.16799862,86722.0,86721.0,0.002]
[1741469149754,0.16799862,86722.0,86720.0,0.0777]
[1741469150190,0.011531,86721.0,86720.0,0.0797]
[1741469150411,0.011531,86721.0,86720.0,0.0777]
[1741469150629,0.011531,86721.0,86720.0,0.09337424]
[1741469151190,0.011531,86721.0,86720.0,0.09537424]
[1741469152607,0.011531,86721.0,86720.0,0.09337424]
[1741469152920,0.011531,86721.0,86720.0,0.09537424]
[1741469155085,0.16799862,86722.0,86720.0,0.09537424]
[1741469156138,0.011531,86721.0,86720.0,0.09537424]
[1741469156348,0.011531,86721.0,86720.0,0.09337424]
[1741469156962,0.011531,86721.0,86720.0,0.09537424]
[1741469157385,0.011531,86721.0,86720.0,0.09337424]
[1741469157746,0.011531,86721.0,86720.0,0.09537424]
[1741469161137,0.16799862,86722.0,86720.0,0.09537424]
[1741469163191,0.16799862,86722.0,86720.0,0.09337424]
[1741469163498,0.16799862,86722.0,86720.0,0.09537424]
[1741469164213,0.16799862,86722.0,86720.0,0.09571404]
[1741469166064,0.01809462,86722.0,86720.0,0.09571404]
[1741469167165,0.02962562,86722.0,86720.0,0.09571404]
[1741469167379,0.138374,86721.0,86720.0,0.09571404]
[1741469168515,0.149905,86721.0,86720.0,0.09571404]
[1741469168733,0.02962562,86722.0,86720.0,0.09571404]
[1741469169114,0.16799962,86722.0,86720.0,0.09371404]
[1741469169314,0.16799962,86722.0,86720.0,0.09571404]
[1741469169614,0.16799962,86722.0,86720.0,0.09371404]
[1741469169847,0.011531,86721.0,86720.0,0.09371404]
[1741469170053,0.011531,86721.0,86720.0,0.09571404]
[1741469171293,0.011531,86721.0,86720.0,0.09371404]
[1741469172836,0.011531,86721.0,86720.0,0.09571404]
[1741469173136,0.011531,86721.0,86720.0,0.09371404]
[1741469173518,0.011531,86721.0,86720.0,0.09671404]
[1741469173720,0.01809462,86722.0,86721.0,0.264374]
[1741469173921,0.01809462,86722.0,86721.0,0.275905]
[1741469174083,0.01809462,86722.0,86721.0,0.29157793]
[1741469175028,0.0095414,86733.0,86732.0,0.149886]
[1741469175240,0.0095414,86733.0,86732.0,0.38567871]
[1741469175460,0.0095414,86733.0,86732.0,0.40018098]
[1741469176062,0.0097113,86733.0,86732.0,0.40018098]
[1741469176264,0.0097113,86733.0,86732.0,0.41472183]
[1741469176878,0.0097113,86733.0,86732.0,0.42172183]
[1741469178969,0.3,86766.0,86753.0,0.1277]
[1741469179201,0.011526,86759.0,86754.0,0.25668]
[1741469179379,0.011526,86759.0,86754.0,0.27229707]
[1741469179938,0.011526,86758.0,86754.0,0.27229707]
[1741469180159,0.011526,86759.0,86754.0,0.27229707]
[1741469180736,0.14984,86759.0,86754.0,0.27229707]
[1741469187107,0.01808699,86758.0,86754.0,0.27229707]
[1741469187281,0.01808699,86758.0,86754.0,0.27429707]
[1741469188127,0.01808699,86758.0,86754.0,0.27229707]
[1741469188328,0.01808699,86758.0,86754.0,0.27429707]
[1741469195467,0.01820245,86758.0,86754.0,0.27429707]
[1741469195717,0.01820245,86758.0,86755.0,0.0757]
[1741469195943,0.00011546,86758.0,86755.0,0.0757]
[1741469196169,0.00011546,86758.0,86756.0,0.01560268]
[1741469197577,0.00011546,86758.0,86756.0,0.01760268]
[1741469198587,0.01820147,86758.0,86756.0,0.01760268]
[1741469201618,0.01820147,86758.0,86756.0,0.02912868]
[1741469201985,0.01820147,86758.0,86757.0,0.149843]
[1741469202404,0.01820147,86758.0,86757.0,0.16544438]
[1741469203475,0.01820147,86758.0,86757.0,0.16744438]
[1741469204338,0.01820147,86758.0,86757.0,0.02912738]
[1741469208449,0.01820147,86758.0,86757.0,0.02712738]
[1741469210400,0.01820147,86758.0,86757.0,0.02912738]
[1741469210612,0.01820147,86758.0,86757.0,0.02712738]
[1741469211023,0.01820147,86758.0,86757.0,0.03012738]
[1741469212855,0.01820147,86758.0,86757.0,0.03046698]
[1741469216757,0.01820147,86758.0,86757.0,0.17850698]
[1741469217393,0.01820147,86758.0,86757.0,0.31682398]
[1741469222933,0.01820147,86758.0,86757.0,0.39442398]
[1741469223176,0.00011546,86758.0,86757.0,0.44322398]
[1741469224354,0.00011546,86758.0,86757.0,0.30190698]
[1741469224547,0.00011546,86758.0,86757.0,0.30690698]
[1741469224726,0.138296,86770.0,86758.0,0.011526]
[1741469224957,0.011525,86765.0,86759.0,0.01185695]
[1741469225164,0.149824,86768.0,86761.0,0.011525]
[1741469225374,0.149828,86767.0,86761.0,0.011525]
[1741469225598,0.011525,86766.0,86762.0,0.0155884]
[1741469226010,0.011525,86766.0,86760.0,0.011526]
[1741469226011,0.011525,86766.0,86763.0,0.10852]
[1741469226231,0.02961001,86766.0,86763.0,0.1241071]
[1741469226618,0.02961001,86766.0,86763.0,0.0155871]
[1741469226761,0.02961001,86766.0,86764.0,0.10852]
[1741469226958,0.149824,86768.0,86765.0,0.01558449]
[1741469227158,0.149824,86768.0,86766.0,0.10852]
[1741469227424,0.149824,86768.0,86767.0,0.01558188]
[1741469227621,0.16790887,86768.0,86767.0,0.01558188]
[1741469229723,0.16790887,86768.0,86767.0,0.01758188]
[1741469229930,0.01808487,86768.0,86767.0,0.01758188]
[1741469232632,0.01808487,86768.0,86767.0,0.09518188]
[1741469233411,0.01808487,86768.0,86767.0,0.01758188]
[1741469236729,0.01808487,86768.0,86767.0,0.02910688]
[1741469237355,0.01808487,86768.0,86767.0,0.27592788]
[1741469237547,0.01825477,86768.0,86767.0,0.27592788]
[1741469237718,0.01825477,86768.0,86767.0,0.12610188]
[1741469238567,0.01825477,86768.0,86767.0,0.01758188]
[1741469238752,0.01825477,86768.0,86767.0,0.12610188]
[1741469241687,0.16807777,86768.0,86767.0,0.01758188]
[1741469241889,0.16807777,86768.0,86767.0,0.11052]
[1741469242111,0.16807777,86768.0,86767.0,0.12610067]
[1741469247482,0.16807777,86768.0,86767.0,0.01758067]
[1741469247685,0.16807777,86768.0,86767.0,0.11052]
[1741469247884,0.16807777,86768.0,86767.0,0.12610067]
[1741469249291,0.01825477,86768.0,86767.0,0.12610067]
[1741469249648,0.01825477,86768.0,86767.0,0.13796547]
[1741469251165,0.01825477,86768.0,86767.0,0.26656547]
[1741469251371,0.0001699,86768.0,86767.0,0.26656547]
[1741469252776,0.09264159,86776.0,86767.0,0.26656547]
[1741469252971,0.138294,86772.0,86767.0,0.25504047]
[1741469253348,0.011524,86769.0,86767.0,0.25504047]
[1741469253598,0.011524,86770.0,86767.0,0.25504047]
[1741469253803,0.149821,86770.0,86767.0,0.25304047]
[1741469254003,0.011524,86769.0,86767.0,0.25304047]
[1741469254655,0.011524,86769.0,86767.0,0.25504047]
[1741469255084,0.149823,86768.0,86767.0,0.25504047]
[1741469255300,0.149823,86768.0,86767.0,0.20604047]
[1741469256024,0.011524,86769.0,86767.0,0.20604047]
[1741469256251,0.011524,86769.0,86767.0,0.20404047]
[1741469256480,0.149821,86770.0,86767.0,0.20604047]
[1741469257103,0.149821,86770.0,86767.0,0.20404047]
[1741469257502,0.149821,86770.0,86767.0,0.20604047]
[1741469257915,0.149821,86770.0,86767.0,0.20404047]
[1741469258089,0.149821,86770.0,86767.0,0.20604047]
[1741469259476,0.011524,86769.0,86767.0,0.20604047]
[1741469259910,0.138299,86768.0,86767.0,0.20604047]
[1741469260316,0.138299,86768.0,86767.0,0.20404047]
[1741469260693,0.138299,86768.0,86767.0,0.20604047]
[1741469261088,0.138299,86768.0,86767.0,0.20404047]
[1741469261284,0.149823,86768.0,86767.0,0.20604047]
[1741469261456,0.149823,86768.0,86767.0,0.12644047]
[1741469261867,0.011524,86769.0,86767.0,0.12644047]
[1741469262447,0.16601076,86773.0,86767.0,0.12644047]
[1741469262649,0.16601076,86773.0,86768.0,0.0804]
[1741469263032,0.011524,86772.0,86769.0,0.01557811]
[1741469263278,0.149819,86771.0,86769.0,0.01557811]
[1741469266551,0.149819,86771.0,86769.0,0.01657811]
[1741469268757,0.011524,86771.0,86769.0,0.01657811]
[1741469273398,0.011524,86771.0,86769.0,0.01691791]
[1741469276052,0.011524,86771.0,86770.0,0.10852]
[1741469276904,0.011524,86771.0,86770.0,0.1240968]
[1741469277557,0.011524,86771.0,86770.0,0.1250968]
[1741469283349,0.01619376,86773.0,86771.0,0.1241]
[1741469283556,0.16601076,86773.0,86772.0,0.0155742]
[1741469283750,0.149817,86773.0,86772.0,0.0155742]
[1741469284598,0.16614424,86773.0,86772.0,0.0155742]
[1741469285186,0.16614424,86773.0,86772.0,0.0165742]
[1741469292770,0.16614424,86773.0,86772.0,0.1240942]
[1741469293620,0.16614424,86773.0,86772.0,0.1250942]
[1741469294389,0.01632724,86773.0,86772.0,0.2041942]
[1741469294573,0.13829,86774.0,86772.0,0.2041942]
[1741469294773,0.13329,86774.0,86772.0,0.2041942]
[1741469295036,0.144814,86774.0,86772.0,0.2041942]
[1741469295909,0.144814,86774.0,86772.0,0.2031942]
[1741469296231,0.144814,86774.0,86772.0,0.2041942]
[1741469298321,0.16586571,86774.0,86772.0,0.2041942]
[1741469299022,0.02105171,86774.0,86773.0,0.0453]
[1741469299530,0.011524,86775.0,86773.0,0.06087289]
[1741469299748,0.13829,86774.0,86773.0,0.06087289]
[1741469300266,0.13829,86774.0,86773.0,0.06187289]
[1741469300476,0.011524,86775.0,86773.0,0.06187289]
[1741469300686,0.0001699,86776.0,86773.0,0.06187289]
[1741469300879,0.02056458,86776.0,86773.0,0.06187289]
[1741469301950,0.02056458,86776.0,86773.0,0.06087289]
[1741469304636,0.138282,86780.0,86774.0,0.10852]
[1741469304953,0.138282,86780.0,86775.0,0.01557029]
[1741469305378,0.15946913,86780.0,86775.0,0.01557029]
[1741469306173,0.17099213,86780.0,86775.0,0.01557029]
[1741469306506,0.17099213,86780.0,86774.0,0.10852]
[1741469306855,0.011523,86779.0,86775.0,0.01557029]
[1741469307254,0.138283,86778.0,86775.0,0.01557029]
[1741469307662,0.138283,86778.0,86774.0,0.10852]
[1741469308067,0.138283,86778.0,86775.0,0.01557029]
[1741469308475,0.149806,86779.0,86774.0,0.10852]
[1741469308875,0.149806,86779.0,86775.0,0.01557029]
[1741469309272,0.149806,86779.0,86774.0,0.10852]
[1741469309684,0.149806,86779.0,86775.0,0.01557029]
[1741469310082,0.149806,86779.0,86774.0,0.10852]
[1741469310083,0.3,86778.0,86774.0,0.10852]
[1741469310534,0.311523,86778.0,86775.0,0.01557029]
[1741469310818,0.311523,86778.0,86774.0,0.10852]
[1741469311177,0.311523,86778.0,86775.0,0.01557029]
[1741469311380,0.311523,86778.0,86774.0,0.10852]
[1741469311607,0.311523,86778.0,86775.0,0.01557029]
[1741469311989,0.311523,86778.0,86774.0,0.10852]
[1741469312387,0.311523,86778.0,86775.0,0.01557029]
[1741469312787,0.311523,86778.0,86774.0,0.10852]
[1741469313245,0.311523,86778.0,86775.0,0.01557029]
[1741469313724,0.311523,86778.0,86774.0,0.10852]
[1741469314144,0.311523,86778.0,86775.0,0.01557029]
[1741469314346,0.311523,86778.0,86774.0,0.10852]
[1741469314548,0.311523,86778.0,86775.0,0.01557029]
[1741469314682,0.311523,86778.0,86774.0,0.10852]
[1741469314901,0.3,86776.0,86774.0,0.10852]
[1741469315105,0.3,86776.0,86775.0,0.01557029]
[1741469317038,0.011523,86777.0,86775.0,0.01857029]
[1741469317238,0.311523,86778.0,86775.0,0.01857029]
[1741469317438,0.311523,86778.0,86775.0,0.003]
[1741469318440,0.32118713,86780.0,86774.0,0.10852]
[1741469318807,0.33271013,86780.0,86775.0,0.002]
[1741469319206,0.33271013,86780.0,86776.0,0.01556899]
[1741469319844,0.3,86778.0,86774.0,0.10852]
[1741469320212,0.3,86778.0,86775.0,0.001]
[1741469320425,0.3,86778.0,86775.0,0.01657029]
[1741469320582,0.3,86778.0,86776.0,0.0794]
[1741469320788,0.3,86778.0,86777.0,0.01556768]
[1741469323218,0.3,86778.0,86777.0,0.01756768]
[1741469326349,0.011523,86779.0,86777.0,0.01756768]
[1741469328088,0.3,86778.0,86777.0,0.01756768]
[1741469328287,0.3,86778.0,86777.0,0.01556768]
[1741469328606,0.3,86778.0,86777.0,0.01756768]
[1741469329055,0.3,86778.0,86777.0,0.01556768]
[1741469329254,0.3,86778.0,86777.0,0.01756768]
[1741469329472,0.10017756,86778.0,86777.0,0.01756768]
[1741469330612,0.011523,86778.0,86777.0,0.01756768]
[1741469332268,0.03402574,86780.0,86777.0,0.01756768]
[1741469332805,0.149806,86779.0,86777.0,0.01756768]
[1741469332989,0.149806,86779.0,86777.0,0.01556768]
[1741469333425,0.149806,86779.0,86777.0,0.01656768]
[1741469333923,0.06607675,86780.0,86777.0,0.01656768]
[1741469334682,0.138283,86778.0,86777.0,0.01656768]
[1741469335107,0.011523,86779.0,86777.0,0.01656768]
[1741469335342,0.011523,86779.0,86777.0,0.01556768]
[1741469335536,0.011523,86779.0,86777.0,0.01790748]
[1741469335969,0.011523,86779.0,86777.0,0.01590748]
[1741469336172,0.011523,86779.0,86777.0,0.01790748]
[1741469336371,0.011523,86779.0,86777.0,0.01590748]
[1741469336784,0.011523,86779.0,86777.0,0.01790748]
[1741469340078,0.06624665,86780.0,86777.0,0.01790748]
[1741469341644,0.011523,86779.0,86777.0,0.01790748]
[1741469342059,0.011523,86779.0,86777.0,0.01590748]
[1741469342460,0.011523,86779.0,86777.0,0.01690748]
[1741469342789,0.011523,86779.0,86777.0,0.01590748]
[1741469342983,0.011523,86779.0,86777.0,0.01790748]
[1741469345576,0.438283,86778.0,86777.0,0.01790748]